[Event "*** SCC Grand Prix: Titled Tuesday Blitz"]
[Site "Chess.com"]
[Date "2020.08.25"]
[Round "8"]
[White "lucasmito"]
[Black "Kotofeyca"]
[Result "0-1"]
[WhiteElo "2491"]
[BlackElo "2342"]
[TimeControl "180+1"]
[EndTime "11:35:12 PDT"]
[Termination "Kotofeyca won by resignation"]

1. e4 {[%clk 0:03:00.9]} 1... c5 {[%clk 0:02:59.3]} 2. Nf3 {[%clk 0:03:00.2]}
2... d6 {[%clk 0:02:59.9]} 3. d4 {[%clk 0:02:57.7]} 3... cxd4 {[%clk 0:03:00.8]}
4. Nxd4 {[%clk 0:02:58.2]} 4... Nf6 {[%clk 0:03:01.4]} 5. Nc3 {[%clk 0:02:58.3]}
5... a6 {[%clk 0:03:01.9]} 6. Be3 {[%clk 0:02:53.6]} 6... Ng4 {[%clk 0:03:01]}
7. Bg5 {[%clk 0:02:53.1]} 7... Nc6 {[%clk 0:03:00.4]} 8. Nxc6 {[%clk 0:02:44.8]}
8... bxc6 {[%clk 0:02:59.8]} 9. Be2 {[%clk 0:02:44.8]} 9... Nf6 {[%clk
0:02:59.3]} 10. O-O {[%clk 0:02:29]} 10... e5 {[%clk 0:02:56.7]} 11. f4 {[%clk
0:02:24.9]} 11... Qb6+ {[%clk 0:02:50.4]} 12. Kh1 {[%clk 0:02:24.3]} 12... Qxb2
{[%clk 0:02:50.4]} 13. Qd3 {[%clk 0:02:11.7]} 13... Be7 {[%clk 0:02:18.4]} 14.
fxe5 {[%clk 0:01:42.1]} 14... dxe5 {[%clk 0:02:16.5]} 15. Qg3 {[%clk 0:01:36.3]}
15... h6 {[%clk 0:01:45.3]} 16. Be3 {[%clk 0:01:33.8]} 16... Qxc3 {[%clk
0:01:40.3]} 17. Qxg7 {[%clk 0:01:26.6]} 17... Rg8 {[%clk 0:01:15]} 18. Qxh6
{[%clk 0:01:26.5]} 18... Qxc2 {[%clk 0:01:11.3]} 19. Rxf6 {[%clk 0:01:20.2]}
19... Qxe2 {[%clk 0:01:04.6]} 20. Rg1 {[%clk 0:01:19.1]} 20... Bxf6 {[%clk
0:00:46.2]} 21. Qxf6 {[%clk 0:01:18.1]} 21... Qxe3 {[%clk 0:00:19.3]} 22. Qxc6+
{[%clk 0:01:17]} 22... Kf8 {[%clk 0:00:19.8]} 23. Qxa8 {[%clk 0:01:14.6]} 23...
Kg7 {[%clk 0:00:20.3]} 24. Qd5 {[%clk 0:01:10.5]} 24... Qf4 {[%clk 0:00:18.2]}
25. a4 {[%clk 0:01:01.2]} 25... Rh8 {[%clk 0:00:16]} 26. g4 {[%clk 0:00:57.2]}
0-1

[Event "*** SCC Grand Prix: Titled Tuesday Blitz"]
[Site "Chess.com"]
[Date "2020.08.25"]
[Round "8"]
[White "frederiksvane"]
[Black "Sychev_Klementy"]
[Result "1-0"]
[WhiteElo "2667"]
[BlackElo "2761"]
[TimeControl "180+1"]
[EndTime "11:35:16 PDT"]
[Termination "frederiksvane won by checkmate"]

1. e4 {[%clk 0:03:00.9]} 1... c5 {[%clk 0:02:54]} 2. Nf3 {[%clk 0:03:00.6]} 2...
e6 {[%clk 0:02:53.9]} 3. d4 {[%clk 0:03:00.5]} 3... cxd4 {[%clk 0:02:54.3]} 4.
Nxd4 {[%clk 0:03:01.4]} 4... Bc5 {[%clk 0:02:54.4]} 5. Nc3 {[%clk 0:02:58.7]}
5... Qb6 {[%clk 0:02:52.2]} 6. Na4 {[%clk 0:02:59.1]} 6... Qa5+ {[%clk 0:02:51]}
7. c3 {[%clk 0:02:59.4]} 7... Bxd4 {[%clk 0:02:49.9]} 8. Qxd4 {[%clk 0:02:56.6]}
8... Nf6 {[%clk 0:02:48.2]} 9. Nc5 {[%clk 0:02:50.1]} 9... Nc6 {[%clk
0:02:42.2]} 10. Qd6 {[%clk 0:02:49]} 10... b6 {[%clk 0:02:28.3]} 11. Nb3 {[%clk
0:02:48.4]} 11... Nxe4 {[%clk 0:02:08.2]} 12. Qxc6 {[%clk 0:02:48.7]} 12... dxc6
{[%clk 0:02:07.4]} 13. Nxa5 {[%clk 0:02:49.2]} 13... bxa5 {[%clk 0:02:07.8]} 14.
Be2 {[%clk 0:02:50]} 14... O-O {[%clk 0:01:55.2]} 15. Be3 {[%clk 0:02:49.4]}
15... Rb8 {[%clk 0:01:50.1]} 16. O-O-O {[%clk 0:02:45.3]} 16... e5 {[%clk
0:01:32.9]} 17. Bf3 {[%clk 0:02:34.4]} 17... Bf5 {[%clk 0:01:29.3]} 18. g4
{[%clk 0:02:34.6]} 18... Bg6 {[%clk 0:01:27.3]} 19. h4 {[%clk 0:02:34.2]} 19...
h6 {[%clk 0:01:05.6]} 20. h5 {[%clk 0:02:34.4]} 20... Bh7 {[%clk 0:01:05.8]} 21.
Rd7 {[%clk 0:02:33.1]} 21... Nxc3 {[%clk 0:01:02.6]} 22. bxc3 {[%clk 0:02:25.4]}
22... Rb1+ {[%clk 0:01:01]} 23. Kd2 {[%clk 0:02:25.8]} 23... Rb2+ {[%clk
0:01:01.1]} 24. Ke1 {[%clk 0:02:21.4]} 24... Rxa2 {[%clk 0:00:55]} 25. Kf1
{[%clk 0:02:18.3]} 25... e4 {[%clk 0:00:27.7]} 26. Be2 {[%clk 0:02:09.6]} 26...
a4 {[%clk 0:00:26.1]} 27. Rxa7 {[%clk 0:02:02.6]} 27... Kh8 {[%clk 0:00:14.3]}
28. Bc4 {[%clk 0:01:56.3]} 28... Rc2 {[%clk 0:00:10.6]} 29. Rxa4 {[%clk
0:01:56.1]} 29... Rxc3 {[%clk 0:00:10.5]} 30. Kg2 {[%clk 0:01:56]} 30... f5
{[%clk 0:00:10.4]} 31. gxf5 {[%clk 0:01:55.6]} 31... Bxf5 {[%clk 0:00:08.7]} 32.
Rh4 {[%clk 0:01:51.2]} 32... c5 {[%clk 0:00:04.9]} 33. Rf4 {[%clk 0:01:39.1]}
33... Bh3+ {[%clk 0:00:03.6]} 34. Kxh3 {[%clk 0:01:36.5]} 34... Rxf4 {[%clk
0:00:01.9]} 35. Ra8+ {[%clk 0:01:36.6]} 35... Kh7 {[%clk 0:00:02]} 36. Bg8+
{[%clk 0:01:36.5]} 36... Kh8 {[%clk 0:00:02.3]} 37. Bf7+ {[%clk 0:01:37.4]}
37... Kh7 {[%clk 0:00:01.9]} 38. Bg6# {[%clk 0:01:38.3]} 1-0

[Event "*** SCC Grand Prix: Titled Tuesday Blitz"]
[Site "Chess.com"]
[Date "2020.08.25"]
[Round "8"]
[White "teacher4chess"]
[Black "Speshka"]
[Result "0-1"]
[WhiteElo "2023"]
[BlackElo "2215"]
[TimeControl "180+1"]
[EndTime "11:35:17 PDT"]
[Termination "Speshka won by checkmate"]

1. d4 {[%clk 0:03:00.4]} 1... f5 {[%clk 0:02:58.9]} 2. Nc3 {[%clk 0:02:57.9]}
2... Nf6 {[%clk 0:02:56.7]} 3. Bf4 {[%clk 0:02:57.4]} 3... g6 {[%clk 0:02:55.9]}
4. d5 {[%clk 0:02:50.7]} 4... Bg7 {[%clk 0:02:53.7]} 5. Nf3 {[%clk 0:02:49.6]}
5... O-O {[%clk 0:02:51.5]} 6. Qd2 {[%clk 0:02:49.4]} 6... Ne4 {[%clk
0:02:44.7]} 7. Nxe4 {[%clk 0:02:42.8]} 7... fxe4 {[%clk 0:02:42.4]} 8. Ng5
{[%clk 0:02:33.2]} 8... Bxb2 {[%clk 0:02:34.3]} 9. Rb1 {[%clk 0:02:32.3]} 9...
Bg7 {[%clk 0:02:33.9]} 10. Nxe4 {[%clk 0:02:32.1]} 10... c6 {[%clk 0:02:28.2]}
11. g3 {[%clk 0:02:12.6]} 11... cxd5 {[%clk 0:02:23.9]} 12. Qxd5+ {[%clk
0:02:12.3]} 12... e6 {[%clk 0:02:23.1]} 13. Qd6 {[%clk 0:02:04.6]} 13... Qa5+
{[%clk 0:02:09.6]} 14. Qb4 {[%clk 0:01:53.5]} 14... Qxb4+ {[%clk 0:02:03.1]} 15.
Rxb4 {[%clk 0:01:52.9]} 15... d5 {[%clk 0:02:02.4]} 16. Bg2 {[%clk 0:01:41.2]}
16... dxe4 {[%clk 0:02:00.2]} 17. O-O {[%clk 0:01:40.5]} 17... e5 {[%clk
0:01:51.4]} 18. Be3 {[%clk 0:01:34.9]} 18... Nc6 {[%clk 0:01:50.3]} 19. Rxe4
{[%clk 0:01:34]} 19... Bf5 {[%clk 0:01:47.5]} 20. Rc4 {[%clk 0:01:34]} 20...
Rac8 {[%clk 0:01:45.2]} 21. Bd5+ {[%clk 0:01:30.5]} 21... Kh8 {[%clk 0:01:42.8]}
22. Bxc6 {[%clk 0:00:58]} 22... Rxc6 {[%clk 0:01:36]} 23. Rxc6 {[%clk 0:00:57]}
23... bxc6 {[%clk 0:01:34.9]} 24. Bxa7 {[%clk 0:00:57]} 24... Ra8 {[%clk
0:01:31.3]} 25. Bc5 {[%clk 0:00:47.2]} 25... Rxa2 {[%clk 0:01:28.1]} 26. Rd1
{[%clk 0:00:46.5]} 26... h6 {[%clk 0:01:26.1]} 27. Rd8+ {[%clk 0:00:45.7]} 27...
Kh7 {[%clk 0:01:24.7]} 28. Rd6 {[%clk 0:00:42.5]} 28... Rxc2 {[%clk 0:01:22]}
29. Rxc6 {[%clk 0:00:42.2]} 29... Rc1+ {[%clk 0:01:21.9]} 30. Kg2 {[%clk
0:00:42.2]} 30... Be4+ {[%clk 0:01:21.9]} 31. f3 {[%clk 0:00:39.3]} 31... Bxc6
{[%clk 0:01:22.8]} 32. Be3 {[%clk 0:00:38]} 32... Rc2 {[%clk 0:01:21.7]} 33. Kf2
{[%clk 0:00:37.2]} 33... Bb5 {[%clk 0:01:21.1]} 34. g4 {[%clk 0:00:36.8]} 34...
Rxe2+ {[%clk 0:01:19.3]} 35. Kg3 {[%clk 0:00:36.9]} 35... Rxe3 {[%clk
0:01:18.9]} 36. h4 {[%clk 0:00:37.4]} 36... e4 {[%clk 0:01:18]} 37. Kf4 {[%clk
0:00:35.3]} 37... Rxf3+ {[%clk 0:01:17.3]} 38. Kxe4 {[%clk 0:00:35.5]} 38...
Bc6# {[%clk 0:01:18.2]} 0-1

[Event "*** SCC Grand Prix: Titled Tuesday Blitz"]
[Site "Chess.com"]
[Date "2020.08.25"]
[Round "8"]
[White "The_Machine04"]
[Black "GAusal"]
[Result "1-0"]
[WhiteElo "2282"]
[BlackElo "2157"]
[TimeControl "180+1"]
[EndTime "11:35:18 PDT"]
[Termination "The_Machine04 won by resignation"]

1. d4 {[%clk 0:03:00.9]} 1... d5 {[%clk 0:02:59.4]} 2. Bf4 {[%clk 0:03:01]} 2...
c6 {[%clk 0:02:59.6]} 3. e3 {[%clk 0:03:01.1]} 3... Nf6 {[%clk 0:03:00.1]} 4. c4
{[%clk 0:03:01]} 4... g6 {[%clk 0:03:00.3]} 5. Nc3 {[%clk 0:03:00.9]} 5... Bg7
{[%clk 0:03:00.4]} 6. h4 {[%clk 0:03:00.6]} 6... h5 {[%clk 0:02:59.3]} 7. Nf3
{[%clk 0:02:59.8]} 7... O-O {[%clk 0:02:58.8]} 8. Ne5 {[%clk 0:02:59.9]} 8...
Nbd7 {[%clk 0:02:56.3]} 9. Be2 {[%clk 0:02:58.2]} 9... Nxe5 {[%clk 0:02:55.3]}
10. Bxe5 {[%clk 0:02:59.1]} 10... Nd7 {[%clk 0:02:55.2]} 11. Bxg7 {[%clk
0:02:58.9]} 11... Kxg7 {[%clk 0:02:55.4]} 12. cxd5 {[%clk 0:02:58.6]} 12... cxd5
{[%clk 0:02:52.9]} 13. Nxd5 {[%clk 0:02:58.5]} 13... b6 {[%clk 0:02:51.9]} 14.
O-O {[%clk 0:02:56.4]} 14... Bb7 {[%clk 0:02:51.8]} 15. Bf3 {[%clk 0:02:56.9]}
15... Nf6 {[%clk 0:02:48.8]} 16. Nxf6 {[%clk 0:02:56.5]} 16... Bxf3 {[%clk
0:02:45.3]} 17. Qxf3 {[%clk 0:02:56.4]} 17... exf6 {[%clk 0:02:46.2]} 18. Rac1
{[%clk 0:02:56.1]} 18... f5 {[%clk 0:02:44.3]} 19. Rc2 {[%clk 0:02:53.3]} 19...
Qd6 {[%clk 0:02:44.3]} 20. Rfc1 {[%clk 0:02:53.1]} 20... f4 {[%clk 0:02:41.7]}
21. Qxf4 {[%clk 0:02:50.2]} 21... Qxf4 {[%clk 0:02:40.6]} 22. exf4 {[%clk
0:02:51.1]} 22... Rad8 {[%clk 0:02:39.6]} 23. Rd2 {[%clk 0:02:51]} 23... Rd7
{[%clk 0:02:38.3]} 24. g3 {[%clk 0:02:47.3]} 24... Rfd8 {[%clk 0:02:36.5]} 25.
Rcd1 {[%clk 0:02:47.5]} 25... Kf6 {[%clk 0:02:35.3]} 26. d5 {[%clk 0:02:41.5]}
26... Ke7 {[%clk 0:02:32.7]} 27. Kg2 {[%clk 0:02:41.5]} 27... Kd6 {[%clk
0:02:32.4]} 28. b4 {[%clk 0:02:36.7]} 28... Rc7 {[%clk 0:02:32]} 29. Kf3 {[%clk
0:02:32.3]} 29... Rdc8 {[%clk 0:02:30.9]} 30. f5 {[%clk 0:02:30.6]} 30... Rc4
{[%clk 0:02:25.3]} 31. fxg6 {[%clk 0:02:21.5]} 31... fxg6 {[%clk 0:02:23.5]} 32.
Rd4 {[%clk 0:02:21.5]} 32... Rxd4 {[%clk 0:02:20.1]} 33. Rxd4 {[%clk 0:02:22.4]}
33... Rc2 {[%clk 0:02:18.9]} 34. a4 {[%clk 0:02:10.7]} 34... a6 {[%clk
0:02:07.7]} 35. Ke3 {[%clk 0:01:57.4]} 35... a5 {[%clk 0:02:05.2]} 36. bxa5
{[%clk 0:01:50.8]} 36... bxa5 {[%clk 0:02:05.1]} 37. f3 {[%clk 0:01:50.1]} 37...
Ra2 {[%clk 0:01:58.9]} 38. Kf4 {[%clk 0:01:44.7]} 38... Ra3 {[%clk 0:01:51.6]}
39. Ke4 {[%clk 0:01:38.7]} 39... Ra1 {[%clk 0:01:44.8]} 40. Kf4 {[%clk
0:01:27.6]} 40... Ra3 {[%clk 0:01:43.1]} 41. g4 {[%clk 0:01:28.1]} 41... Kc5
{[%clk 0:01:32.9]} 42. d6 {[%clk 0:01:25.2]} 42... Kxd4 {[%clk 0:01:14.9]} 43.
d7 {[%clk 0:01:23.7]} 43... Rxa4 {[%clk 0:01:10.2]} 44. d8=Q+ {[%clk 0:01:24.3]}
44... Kc3+ {[%clk 0:01:10.5]} 45. Kg5 {[%clk 0:01:23.3]} 45... Ra3 {[%clk
0:01:07.2]} 46. Kxg6 {[%clk 0:01:19.2]} 46... hxg4 {[%clk 0:01:06.2]} 47. fxg4
{[%clk 0:01:20.1]} 47... a4 {[%clk 0:01:06.1]} 48. h5 {[%clk 0:01:16.6]} 48...
Kb2 {[%clk 0:01:05.5]} 49. Qd2+ {[%clk 0:01:14.6]} 49... Kb3 {[%clk 0:01:04.2]}
50. h6 {[%clk 0:01:12.7]} 50... Ra2 {[%clk 0:01:03.9]} 51. Qxa2+ {[%clk
0:01:11]} 51... Kxa2 {[%clk 0:01:03.8]} 52. h7 {[%clk 0:01:11.9]} 52... a3
{[%clk 0:01:04.4]} 53. h8=Q {[%clk 0:01:12.8]} 53... Kb3 {[%clk 0:01:05]} 54.
Qa1 {[%clk 0:01:12.2]} 54... a2 {[%clk 0:01:05.9]} 55. Kf6 {[%clk 0:01:12]} 1-0

[Event "*** SCC Grand Prix: Titled Tuesday Blitz"]
[Site "Chess.com"]
[Date "2020.08.25"]
[Round "8"]
[White "Sesleria"]
[Black "krasavetc"]
[Result "0-1"]
[WhiteElo "2063"]
[BlackElo "2282"]
[TimeControl "180+1"]
[EndTime "11:35:20 PDT"]
[Termination "krasavetc won by resignation"]

1. e4 {[%clk 0:03:00.9]} 1... e6 {[%clk 0:02:56.6]} 2. d4 {[%clk 0:03:00.5]}
2... d5 {[%clk 0:02:57.5]} 3. Nc3 {[%clk 0:03:00.3]} 3... Nf6 {[%clk 0:02:57.3]}
4. e5 {[%clk 0:03:00]} 4... Nfd7 {[%clk 0:02:56.8]} 5. f4 {[%clk 0:03:00.5]}
5... c5 {[%clk 0:02:57.1]} 6. Nf3 {[%clk 0:03:01]} 6... Nc6 {[%clk 0:02:56.5]}
7. Be3 {[%clk 0:03:00.8]} 7... a6 {[%clk 0:02:54.4]} 8. Be2 {[%clk 0:03:00.1]}
8... b5 {[%clk 0:02:52.8]} 9. O-O {[%clk 0:02:56.9]} 9... Bb7 {[%clk 0:02:49.5]}
10. f5 {[%clk 0:02:42.8]} 10... exf5 {[%clk 0:02:11.5]} 11. Nxd5 {[%clk
0:02:41]} 11... cxd4 {[%clk 0:02:03.9]} 12. Bg5 {[%clk 0:02:21.8]} 12... Qb8
{[%clk 0:01:34.2]} 13. Nxd4 {[%clk 0:01:54.3]} 13... Nxd4 {[%clk 0:01:31.3]} 14.
e6 {[%clk 0:01:13.8]} 14... fxe6 {[%clk 0:01:19.1]} 15. Bh5+ {[%clk 0:01:12.6]}
15... g6 {[%clk 0:01:16.7]} 16. Qxd4 {[%clk 0:01:03]} 16... Bc5 {[%clk
0:01:10.5]} 17. Nf6+ {[%clk 0:01:02.9]} 17... Kf7 {[%clk 0:01:04.2]} 18. Nxd7
{[%clk 0:00:47.9]} 18... Bxd4+ {[%clk 0:01:02.7]} 19. Kh1 {[%clk 0:00:48.5]}
19... Qd6 {[%clk 0:00:59.9]} 20. c3 {[%clk 0:00:37.7]} 20... gxh5 {[%clk
0:00:54.2]} 21. cxd4 {[%clk 0:00:31.8]} 21... Qxd7 {[%clk 0:00:50.7]} 22. d5
{[%clk 0:00:28.3]} 22... Qxd5 {[%clk 0:00:48.9]} 23. Rf2 {[%clk 0:00:26.6]}
23... Rhg8 {[%clk 0:00:47.8]} 24. h4 {[%clk 0:00:26.1]} 24... h6 {[%clk
0:00:40.8]} 25. Rc1 {[%clk 0:00:21.3]} 25... hxg5 {[%clk 0:00:34.9]} 0-1

[Event "*** SCC Grand Prix: Titled Tuesday Blitz"]
[Site "Chess.com"]
[Date "2020.08.25"]
[Round "8"]
[White "Ausbildung"]
[Black "profofchess"]
[Result "0-1"]
[WhiteElo "2249"]
[BlackElo "2420"]
[TimeControl "180+1"]
[EndTime "11:35:23 PDT"]
[Termination "profofchess won by resignation"]

1. e4 {[%clk 0:03:00.9]} 1... e6 {[%clk 0:03:00]} 2. d4 {[%clk 0:02:59.7]} 2...
d5 {[%clk 0:03:00.2]} 3. Bd3 {[%clk 0:02:59.3]} 3... dxe4 {[%clk 0:02:59.2]} 4.
Bxe4 {[%clk 0:02:58.8]} 4... Nf6 {[%clk 0:03:00.1]} 5. Bf3 {[%clk 0:02:58.1]}
5... Bd6 {[%clk 0:03:00.8]} 6. Ne2 {[%clk 0:02:55.5]} 6... Nbd7 {[%clk
0:03:01.3]} 7. O-O {[%clk 0:02:52.8]} 7... O-O {[%clk 0:03:01.5]} 8. Na3 {[%clk
0:02:51.3]} 8... e5 {[%clk 0:03:00.5]} 9. Nc4 {[%clk 0:02:48.7]} 9... e4 {[%clk
0:02:59.5]} 10. Ng3 {[%clk 0:02:26.7]} 10... exf3 {[%clk 0:02:51.1]} 11. Qxf3
{[%clk 0:02:26.2]} 11... Nb6 {[%clk 0:02:23.5]} 12. Ne5 {[%clk 0:02:21.6]} 12...
Bxe5 {[%clk 0:01:55.9]} 13. dxe5 {[%clk 0:02:20.4]} 13... Ng4 {[%clk 0:01:55.7]}
14. Re1 {[%clk 0:02:15.5]} 14... Qd5 {[%clk 0:01:45.7]} 15. Qf4 {[%clk
0:02:06.3]} 15... Re8 {[%clk 0:01:29.7]} 16. Bd2 {[%clk 0:01:43.2]} 16... Rxe5
{[%clk 0:01:12.3]} 17. Bc3 {[%clk 0:01:38.8]} 17... Rxe1+ {[%clk 0:01:10]} 18.
Rxe1 {[%clk 0:01:37.4]} 18... Be6 {[%clk 0:01:02.8]} 19. h3 {[%clk 0:01:35.4]}
19... Nh6 {[%clk 0:00:42.1]} 20. Re5 {[%clk 0:01:18]} 20... Qd1+ {[%clk
0:00:41.7]} 21. Kh2 {[%clk 0:01:17.3]} 21... Nd5 {[%clk 0:00:31.2]} 22. Qb4
{[%clk 0:00:19.5]} 22... Nxb4 {[%clk 0:00:30.2]} 0-1

[Event "*** SCC Grand Prix: Titled Tuesday Blitz"]
[Site "Chess.com"]
[Date "2020.08.25"]
[Round "8"]
[White "BjarkeSahl"]
[Black "ljuks68"]
[Result "0-1"]
[WhiteElo "2310"]
[BlackElo "2443"]
[TimeControl "180+1"]
[EndTime "11:35:25 PDT"]
[Termination "ljuks68 won by resignation"]

1. e4 {[%clk 0:03:00.9]} 1... e6 {[%clk 0:02:59.5]} 2. d4 {[%clk 0:02:59.5]}
2... d5 {[%clk 0:02:59.9]} 3. e5 {[%clk 0:02:59]} 3... c5 {[%clk 0:02:59.5]} 4.
c3 {[%clk 0:02:59.7]} 4... Nc6 {[%clk 0:02:59.9]} 5. Nf3 {[%clk 0:03:00.1]} 5...
Qb6 {[%clk 0:03:00.4]} 6. a3 {[%clk 0:03:00.7]} 6... c4 {[%clk 0:03:00.6]} 7.
Nbd2 {[%clk 0:02:56.1]} 7... Na5 {[%clk 0:03:01]} 8. g3 {[%clk 0:02:56.4]} 8...
Bd7 {[%clk 0:03:01.3]} 9. Nh4 {[%clk 0:02:56.5]} 9... Be7 {[%clk 0:02:55.4]} 10.
Ng2 {[%clk 0:02:53.7]} 10... Nh6 {[%clk 0:02:48]} 11. Ne3 {[%clk 0:02:52.8]}
11... f6 {[%clk 0:02:22.9]} 12. Qh5+ {[%clk 0:02:45.7]} 12... Nf7 {[%clk
0:02:22.5]} 13. exf6 {[%clk 0:02:43.9]} 13... gxf6 {[%clk 0:02:04.9]} 14. Bh3
{[%clk 0:02:43.5]} 14... Rf8 {[%clk 0:02:00.6]} 15. O-O {[%clk 0:02:13.6]} 15...
O-O-O {[%clk 0:01:59.8]} 16. f4 {[%clk 0:02:10]} 16... Nd6 {[%clk 0:01:42.1]}
17. Bg2 {[%clk 0:02:05.8]} 17... f5 {[%clk 0:01:28.4]} 18. Bxd5 {[%clk
0:01:58.8]} 18... exd5 {[%clk 0:01:03.3]} 19. Nxd5 {[%clk 0:01:58.7]} 19... Qb5
{[%clk 0:01:03.7]} 20. Nxe7+ {[%clk 0:01:52.7]} 20... Kb8 {[%clk 0:01:04]} 21.
Re1 {[%clk 0:01:47.9]} 21... Rde8 {[%clk 0:00:56.2]} 22. Re5 {[%clk 0:01:30.3]}
22... Qa6 {[%clk 0:00:48.9]} 23. Nd5 {[%clk 0:01:28.6]} 23... Bc6 {[%clk
0:00:41.5]} 24. Ne3 {[%clk 0:01:24.1]} 24... Rxe5 {[%clk 0:00:34.1]} 25. dxe5
{[%clk 0:01:20.4]} 25... Ne4 {[%clk 0:00:33]} 26. Qe2 {[%clk 0:01:12.9]} 26...
Rd8 {[%clk 0:00:26.1]} 27. Nxf5 {[%clk 0:01:05.1]} 27... Qb6+ {[%clk 0:00:23]}
28. Ne3 {[%clk 0:00:47.1]} 28... Nxd2 {[%clk 0:00:21.1]} 29. Bxd2 {[%clk
0:00:47.1]} 29... Nb3 {[%clk 0:00:21.5]} 0-1

[Event "*** SCC Grand Prix: Titled Tuesday Blitz"]
[Site "Chess.com"]
[Date "2020.08.25"]
[Round "8"]
[White "Dannyyi"]
[Black "Panterov"]
[Result "1-0"]
[WhiteElo "2369"]
[BlackElo "2012"]
[TimeControl "180+1"]
[EndTime "11:35:25 PDT"]
[Termination "Dannyyi won by resignation"]

1. e4 {[%clk 0:03:00.9]} 1... e6 {[%clk 0:02:59.7]} 2. c4 {[%clk 0:02:56.8]}
2... d5 {[%clk 0:03:00.6]} 3. cxd5 {[%clk 0:02:57.7]} 3... exd5 {[%clk
0:02:59.6]} 4. Qb3 {[%clk 0:02:58.3]} 4... Nf6 {[%clk 0:02:44.2]} 5. e5 {[%clk
0:02:57.6]} 5... Ne4 {[%clk 0:02:43.9]} 6. Nc3 {[%clk 0:02:57.4]} 6... Nxc3
{[%clk 0:02:40.5]} 7. bxc3 {[%clk 0:02:57.9]} 7... Be7 {[%clk 0:02:40.3]} 8. d4
{[%clk 0:02:54.7]} 8... O-O {[%clk 0:02:40.2]} 9. Bd3 {[%clk 0:02:53.7]} 9... c5
{[%clk 0:02:38.8]} 10. Qc2 {[%clk 0:02:51.6]} 10... h6 {[%clk 0:02:37.1]} 11.
Nf3 {[%clk 0:02:49.5]} 11... Nc6 {[%clk 0:02:34.1]} 12. O-O {[%clk 0:02:47.8]}
12... Bg4 {[%clk 0:02:33.9]} 13. Be3 {[%clk 0:02:27.5]} 13... Bxf3 {[%clk
0:02:31.1]} 14. gxf3 {[%clk 0:02:28.4]} 14... Rc8 {[%clk 0:02:21.4]} 15. Bf5
{[%clk 0:02:12.8]} 15... Rc7 {[%clk 0:01:53.5]} 16. Qd2 {[%clk 0:02:12.6]} 16...
Na5 {[%clk 0:01:49.2]} 17. Bxh6 {[%clk 0:02:04.7]} 17... Rc6 {[%clk 0:00:53.5]}
18. Bxg7 {[%clk 0:01:36.3]} 18... Kxg7 {[%clk 0:00:50.4]} 19. Kh1 {[%clk
0:01:35.1]} 19... Rh8 {[%clk 0:00:43.7]} 20. Rg1+ {[%clk 0:01:32.7]} 20... Kf8
{[%clk 0:00:43.8]} 21. Rg2 {[%clk 0:01:18.4]} 21... Rch6 {[%clk 0:00:39.6]} 22.
Rag1 {[%clk 0:01:16.2]} 22... Bg5 {[%clk 0:00:32.3]} 23. f4 {[%clk 0:01:14]}
23... Nc4 {[%clk 0:00:30.7]} 24. Qc1 {[%clk 0:01:10.7]} 24... Bh4 {[%clk
0:00:24]} 25. Bd3 {[%clk 0:01:04.1]} 25... Qd7 {[%clk 0:00:18.8]} 26. f5 {[%clk
0:00:58.9]} 26... Qe7 {[%clk 0:00:13.2]} 27. Qxh6+ {[%clk 0:00:56.7]} 1-0

[Event "*** SCC Grand Prix: Titled Tuesday Blitz"]
[Site "Chess.com"]
[Date "2020.08.25"]
[Round "8"]
[White "Sophist4Life"]
[Black "Lion-Al-Messi"]
[Result "0-1"]
[WhiteElo "2445"]
[BlackElo "2571"]
[TimeControl "180+1"]
[EndTime "11:35:28 PDT"]
[Termination "Lion-Al-Messi won by resignation"]

1. d4 {[%clk 0:03:00.9]} 1... d5 {[%clk 0:03:00]} 2. c4 {[%clk 0:02:58.9]} 2...
c6 {[%clk 0:03:00.6]} 3. Nf3 {[%clk 0:02:59.1]} 3... Nf6 {[%clk 0:03:01.1]} 4.
Nc3 {[%clk 0:02:59.5]} 4... dxc4 {[%clk 0:03:01.6]} 5. a4 {[%clk 0:02:59.3]}
5... Bf5 {[%clk 0:03:00.8]} 6. e3 {[%clk 0:02:59.3]} 6... e6 {[%clk 0:03:00.3]}
7. Bxc4 {[%clk 0:02:59.4]} 7... Bb4 {[%clk 0:02:58.6]} 8. Ne5 {[%clk 0:02:57.5]}
8... O-O {[%clk 0:02:55.5]} 9. f3 {[%clk 0:02:49.5]} 9... c5 {[%clk 0:02:52.6]}
10. Qb3 {[%clk 0:02:46.1]} 10... a5 {[%clk 0:02:41.9]} 11. dxc5 {[%clk
0:02:25.9]} 11... Na6 {[%clk 0:02:39.9]} 12. Bxa6 {[%clk 0:02:22.5]} 12... Rxa6
{[%clk 0:02:40.3]} 13. O-O {[%clk 0:02:20.8]} 13... Bxc5 {[%clk 0:02:36.2]} 14.
Kh1 {[%clk 0:01:58.1]} 14... Rb6 {[%clk 0:02:25.1]} 15. Qc4 {[%clk 0:01:57.6]}
15... Qc7 {[%clk 0:02:16.9]} 16. Nd3 {[%clk 0:01:39.6]} 16... Bxd3 {[%clk
0:02:16.1]} 17. Qxd3 {[%clk 0:01:40.3]} 17... Rd8 {[%clk 0:02:16.5]} 18. Qc2
{[%clk 0:01:39.7]} 18... Bb4 {[%clk 0:02:09.6]} 19. e4 {[%clk 0:01:39.1]} 19...
Rc6 {[%clk 0:02:08.2]} 20. Bd2 {[%clk 0:01:39.2]} 20... h6 {[%clk 0:02:03.7]}
21. Rac1 {[%clk 0:01:38]} 21... Nh5 {[%clk 0:02:02.1]} 22. f4 {[%clk 0:01:28]}
22... Bxc3 {[%clk 0:02:00]} 23. bxc3 {[%clk 0:01:20.9]} 23... Nf6 {[%clk
0:01:56.3]} 24. f5 {[%clk 0:01:15.2]} 24... e5 {[%clk 0:01:53.4]} 25. Be3 {[%clk
0:01:11.9]} 25... Rc4 {[%clk 0:01:53.5]} 26. Rb1 {[%clk 0:01:09.3]} 26... Rxc3
{[%clk 0:01:53.6]} 27. Qf2 {[%clk 0:01:07.9]} 27... Ng4 {[%clk 0:01:50.7]} 28.
Qh4 {[%clk 0:00:14.3]} 28... Nxe3 {[%clk 0:01:46.2]} 29. f6 {[%clk 0:00:14.1]}
29... Nxf1 {[%clk 0:01:38.4]} 30. Qg4 {[%clk 0:00:12.3]} 30... g6 {[%clk
0:01:27.9]} 31. Qh4 {[%clk 0:00:10.3]} 31... Ne3 {[%clk 0:01:19.9]} 32. Rg1
{[%clk 0:00:07.4]} 32... Rc1 {[%clk 0:01:16.2]} 33. h3 {[%clk 0:00:03.6]} 33...
Rxg1+ {[%clk 0:01:15.6]} 34. Kxg1 {[%clk 0:00:04.5]} 34... Qc1+ {[%clk
0:01:15.8]} 35. Kh2 {[%clk 0:00:04.7]} 35... Nf1+ {[%clk 0:01:15.9]} 0-1